[Event "Titled Tuesday Blitz January 31 Late 2023"]
[White "Petkov, Momchil"]
[Black "Bluebaum, Matthias"]
[WhiteFideId "2921642"]
[BlackFideId "24651516"]
[WhiteElo "2522"]
[BlackElo "2669"]
[Result "1-0"]
[Round "02"]
[TimeControl "180+2"]
[Date "2023.01.31"]
[WhiteClock "0:00:15"]
[BlackClock "0:00:03"]

1. d4 {[%clk 0:03:00]}  d5 {[%clk 0:02:59]} 2. Nf3 {[%clk 0:03:00]}  e6 {[%clk 0:03:00]} 3. Bf4 {[%clk 0:03:00]}  c5 {[%clk 0:03:00]} 4. e3 {[%clk 0:03:00]}  Nc6 {[%clk 0:03:01]} 5. Nbd2 {[%clk 0:02:59]}  Bd6 {[%clk 0:03:00]} 6. Bg3 {[%clk 0:02:43]}  Bxg3 {[%clk 0:03:00]} 7. hxg3 {[%clk 0:02:43]}  Qb6 {[%clk 0:03:00]} 8. dxc5 {[%clk 0:02:37]}  Qxb2 {[%clk 0:03:01]} 9. Rb1 {[%clk 0:02:12]}  Qc3 {[%clk 0:02:58]} 10. Bb5 {[%clk 0:02:09]}  Qxc5 {[%clk 0:02:56]} 11. c4 {[%clk 0:02:09]}  Nf6 {[%clk 0:02:55]} 12. O-O {[%clk 0:02:01]}  O-O {[%clk 0:02:52]} 13. Nb3 {[%clk 0:02:01]}  Qe7 {[%clk 0:02:52]} 14. cxd5 {[%clk 0:01:58]}  exd5 {[%clk 0:02:46]} 15. Rc1 {[%clk 0:01:52]}  Ne5 {[%clk 0:02:22]} 16. Nxe5 {[%clk 0:01:48]}  Qxe5 {[%clk 0:02:23]} 17. Qd4 {[%clk 0:01:49]}  Qh5 {[%clk 0:02:17]} 18. Qh4 {[%clk 0:01:49]}  Qxh4 {[%clk 0:01:48]} 19. gxh4 {[%clk 0:01:48]}  Bf5 {[%clk 0:01:37]} 20. Nd4 {[%clk 0:01:38]}  Be6 {[%clk 0:01:34]} 21. Rc7 {[%clk 0:01:36]}  a6 {[%clk 0:01:35]} 22. Bd3 {[%clk 0:01:27]}  b5 {[%clk 0:01:33]} 23. a4 {[%clk 0:01:24]}  bxa4 {[%clk 0:01:29]} 24. Ra1 {[%clk 0:01:24]}  Bd7 {[%clk 0:01:29]} 25. Bc2 {[%clk 0:01:18]}  Rfc8 {[%clk 0:01:19]} 26. Rxc8+ {[%clk 0:01:16]}  Rxc8 {[%clk 0:01:20]} 27. Bxa4 {[%clk 0:01:08]}  Ra8 {[%clk 0:00:38]} 28. Bxd7 {[%clk 0:01:06]}  Nxd7 {[%clk 0:00:38]} 29. Ra5 {[%clk 0:01:01]}  Nb6 {[%clk 0:00:38]} 30. Nc6 {[%clk 0:00:57]}  h6 {[%clk 0:00:21]} 31. Nb4 {[%clk 0:00:57]}  Nc4 {[%clk 0:00:10]} 32. Rxa6 {[%clk 0:00:50]}  Rxa6 {[%clk 0:00:08]} 33. Nxa6 {[%clk 0:00:51]}  Nd6 {[%clk 0:00:08]} 34. Nb4 {[%clk 0:00:50]}  Nf5 {[%clk 0:00:09]} 35. g3 {[%clk 0:00:44]}  Ne7 {[%clk 0:00:08]} 36. Kf1 {[%clk 0:00:43]}  f5 {[%clk 0:00:07]} 37. Ke2 {[%clk 0:00:44]}  Kf7 {[%clk 0:00:08]} 38. Kd3 {[%clk 0:00:44]}  Ke6 {[%clk 0:00:09]} 39. Kd4 {[%clk 0:00:44]}  Kd6 {[%clk 0:00:09]} 40. h5 {[%clk 0:00:42]}  Ke6 {[%clk 0:00:08]} 41. Kc5 {[%clk 0:00:39]}  Ke5 {[%clk 0:00:08]} 42. f3 {[%clk 0:00:39]}  Ke6 {[%clk 0:00:04]} 43. Nd3 {[%clk 0:00:39]}  Ng8 {[%clk 0:00:02]} 44. Nf4+ {[%clk 0:00:39]}  Ke5 {[%clk 0:00:02]} 45. Nxd5 {[%clk 0:00:38]}  Ke6 {[%clk 0:00:03]} 46. Kd4 {[%clk 0:00:38]}  Kd6 {[%clk 0:00:03]} 47. e4 {[%clk 0:00:31]}  fxe4 {[%clk 0:00:04]} 48. fxe4 {[%clk 0:00:31]}  Ke6 {[%clk 0:00:05]} 49. e5 {[%clk 0:00:32]}  Kf5 {[%clk 0:00:05]} 50. Ne3+ {[%clk 0:00:23]}  Kg5 {[%clk 0:00:05]} 51. g4 {[%clk 0:00:23]}  Ne7 {[%clk 0:00:04]} 52. Nf5 {[%clk 0:00:17]}  Nc6+ {[%clk 0:00:04]} 53. Kd5 {[%clk 0:00:15]}  Nb4+ {[%clk 0:00:03]} 54. Kd6 {[%clk 0:00:15]} 1-0


[Site "https://www.chess.com"]

[Event "Titled Tuesday Blitz January 31 Late 2023"]
[White "Bok, Benjamin"]
[Black "Gubajdullin, Alexei"]
[WhiteFideId "1017063"]
[BlackFideId "4141202"]
[WhiteElo "2607"]
[BlackElo "2285"]
[Result "0-1"]
[Round "02"]
[TimeControl "180+2"]
[Date "2023.01.31"]
[WhiteClock "0:00:05"]
[BlackClock "0:01:36"]

1. d4 {[%clk 0:03:00]}  Nf6 {[%clk 0:02:59]} 2. c4 {[%clk 0:03:01]}  g6 {[%clk 0:02:59]} 3. g3 {[%clk 0:03:00]}  Bg7 {[%clk 0:02:59]} 4. Bg2 {[%clk 0:03:00]}  O-O {[%clk 0:03:00]} 5. Nc3 {[%clk 0:03:01]}  d6 {[%clk 0:03:00]} 6. Nf3 {[%clk 0:03:01]}  Nc6 {[%clk 0:03:00]} 7. O-O {[%clk 0:03:01]}  a6 {[%clk 0:03:01]} 8. b3 {[%clk 0:03:01]}  Rb8 {[%clk 0:03:00]} 9. d5 {[%clk 0:03:01]}  Na5 {[%clk 0:03:00]} 10. Bg5 {[%clk 0:03:00]}  c5 {[%clk 0:02:59]} 11. dxc6 {[%clk 0:03:00]}  bxc6 {[%clk 0:02:59]} 12. Rc1 {[%clk 0:03:00]}  h6 {[%clk 0:02:58]} 13. Be3 {[%clk 0:02:54]}  c5 {[%clk 0:02:57]} 14. Nd5 {[%clk 0:02:53]}  Nxd5 {[%clk 0:02:53]} 15. cxd5 {[%clk 0:02:54]}  Bf5 {[%clk 0:02:39]} 16. Qd2 {[%clk 0:02:54]}  Kh7 {[%clk 0:02:38]} 17. Rfe1 {[%clk 0:02:40]}  Rb4 {[%clk 0:02:36]} 18. h4 {[%clk 0:02:15]}  Qb8 {[%clk 0:02:32]} 19. Bf4 {[%clk 0:02:08]}  c4 {[%clk 0:02:30]} 20. e4 {[%clk 0:01:30]}  Bg4 {[%clk 0:02:20]} 21. e5 {[%clk 0:01:12]}  cxb3 {[%clk 0:02:08]} 22. a3 {[%clk 0:01:01]}  Ra4 {[%clk 0:02:04]} 23. exd6 {[%clk 0:01:00]}  exd6 {[%clk 0:02:03]} 24. Nh2 {[%clk 0:00:46]}  Bf5 {[%clk 0:01:54]} 25. Bf1 {[%clk 0:00:33]}  b2 {[%clk 0:01:53]} 26. Rb1 {[%clk 0:00:28]}  Bxb1 {[%clk 0:01:52]} 27. Rxb1 {[%clk 0:00:29]}  Nc4 {[%clk 0:01:51]} 28. Bxc4 {[%clk 0:00:28]}  Rxc4 {[%clk 0:01:51]} 29. h5 {[%clk 0:00:28]}  Rfc8 {[%clk 0:01:47]} 30. hxg6+ {[%clk 0:00:27]}  fxg6 {[%clk 0:01:47]} 31. Kg2 {[%clk 0:00:25]}  Rc1 {[%clk 0:01:46]} 32. Qd3 {[%clk 0:00:18]}  Qb5 {[%clk 0:01:43]} 33. Qe4 {[%clk 0:00:15]}  Re8 {[%clk 0:01:38]} 34. Rxc1 {[%clk 0:00:05]}  Rxe4 {[%clk 0:01:36]} 0-1


[Site "https://www.chess.com"]

[Event "Titled Tuesday Blitz January 31 Late 2023"]
[White "Tang, Andrew"]
[Black "Koellner, Ruben Gideon"]
[WhiteFideId "2059630"]
[BlackFideId "12993093"]
[WhiteElo "2523"]
[BlackElo "2426"]
[Result "1-0"]
[Round "02"]
[TimeControl "180+2"]
[Date "2023.01.31"]
[WhiteClock "0:00:08"]
[BlackClock "0:00:05"]

1. d4 {[%clk 0:03:00]}  d5 {[%clk 0:02:58]} 2. Bf4 {[%clk 0:02:59]}  Nf6 {[%clk 0:02:40]} 3. e3 {[%clk 0:02:58]}  c5 {[%clk 0:02:39]} 4. Nc3 {[%clk 0:02:58]}  a6 {[%clk 0:02:13]} 5. dxc5 {[%clk 0:02:56]}  Nc6 {[%clk 0:02:03]} 6. a3 {[%clk 0:02:55]}  e5 {[%clk 0:02:02]} 7. Bg5 {[%clk 0:02:55]}  d4 {[%clk 0:01:49]} 8. Ne4 {[%clk 0:02:20]}  Bf5 {[%clk 0:01:48]} 9. Bd3 {[%clk 0:01:42]}  Bxe4 {[%clk 0:01:41]} 10. Bxe4 {[%clk 0:01:40]}  Bxc5 {[%clk 0:01:39]} 11. b4 {[%clk 0:01:04]}  Be7 {[%clk 0:01:33]} 12. Bxf6 {[%clk 0:00:33]}  Bxf6 {[%clk 0:01:32]} 13. Qf3 {[%clk 0:00:29]}  O-O {[%clk 0:01:24]} 14. Ne2 {[%clk 0:00:26]}  Rc8 {[%clk 0:01:10]} 15. O-O {[%clk 0:00:23]}  g6 {[%clk 0:01:09]} 16. Rad1 {[%clk 0:00:22]}  Bg7 {[%clk 0:01:06]} 17. c3 {[%clk 0:00:18]}  f5 {[%clk 0:00:43]} 18. Bd5+ {[%clk 0:00:12]}  Kh8 {[%clk 0:00:41]} 19. Bxc6 {[%clk 0:00:11]}  Rxc6 {[%clk 0:00:21]} 20. cxd4 {[%clk 0:00:11]}  Qe7 {[%clk 0:00:12]} 21. dxe5 {[%clk 0:00:06]}  Bxe5 {[%clk 0:00:11]} 22. Nf4 {[%clk 0:00:06]}  Bxf4 {[%clk 0:00:09]} 23. Qxf4 {[%clk 0:00:07]}  Qc7 {[%clk 0:00:09]} 24. Qd4+ {[%clk 0:00:07]}  Qg7 {[%clk 0:00:09]} 25. Qd5 {[%clk 0:00:08]}  Rfc8 {[%clk 0:00:08]} 26. g3 {[%clk 0:00:08]}  h6 {[%clk 0:00:08]} 27. Rd3 {[%clk 0:00:08]}  Kh7 {[%clk 0:00:09]} 28. Rfd1 {[%clk 0:00:08]}  R8c7 {[%clk 0:00:09]} 29. h4 {[%clk 0:00:08]}  h5 {[%clk 0:00:09]} 30. Kg2 {[%clk 0:00:09]}  Rc2 {[%clk 0:00:09]} 31. Qf3 {[%clk 0:00:09]}  Qe7 {[%clk 0:00:08]} 32. Rd8 {[%clk 0:00:09]}  R2c6 {[%clk 0:00:07]} 33. R1d4 {[%clk 0:00:08]}  Qf7 {[%clk 0:00:07]} 34. Qf4 {[%clk 0:00:08]}  Qg7 {[%clk 0:00:06]} 35. R4d5 {[%clk 0:00:08]}  Rc4 {[%clk 0:00:06]} 36. Qf3 {[%clk 0:00:08]}  Qe7 {[%clk 0:00:06]} 37. Qd1 {[%clk 0:00:08]}  Qe4+ {[%clk 0:00:06]} 38. Kh2 {[%clk 0:00:08]}  Rc1 {[%clk 0:00:05]} 39. R5d7+ {[%clk 0:00:08]} 1-0


[Site "https://www.chess.com"]

[Event "Titled Tuesday Blitz January 31 Late 2023"]
[White "Kozak, Adam"]
[Black "EREBUNI91"]
[WhiteFideId "753246"]
[WhiteElo "2572"]
[BlackElo "2685"]
[Result "1-0"]
[Round "02"]
[TimeControl "180+2"]
[Date "2023.01.31"]
[WhiteClock "0:01:19"]
[BlackClock "0:00:12"]

1. c4 {[%clk 0:02:58]}  e5 {[%clk 0:02:56]} 2. Nc3 {[%clk 0:02:56]}  Bb4 {[%clk 0:02:55]} 3. Nf3 {[%clk 0:02:55]}  Bxc3 {[%clk 0:02:54]} 4. dxc3 {[%clk 0:02:55]}  d6 {[%clk 0:02:54]} 5. c5 {[%clk 0:02:55]}  e4 {[%clk 0:02:47]} 6. Qa4+ {[%clk 0:02:49]}  Nc6 {[%clk 0:02:37]} 7. Qxe4+ {[%clk 0:02:49]}  Nge7 {[%clk 0:02:36]} 8. cxd6 {[%clk 0:02:48]}  Qxd6 {[%clk 0:02:31]} 9. Bf4 {[%clk 0:02:48]}  Qc5 {[%clk 0:02:30]} 10. e3 {[%clk 0:02:42]}  Bf5 {[%clk 0:02:25]} 11. Qa4 {[%clk 0:02:41]}  O-O-O {[%clk 0:02:19]} 12. Be2 {[%clk 0:02:34]}  f6 {[%clk 0:02:15]} 13. Nd4 {[%clk 0:02:30]}  Bd7 {[%clk 0:02:05]} 14. Qb5 {[%clk 0:02:25]}  Qxb5 {[%clk 0:01:56]} 15. Nxb5 {[%clk 0:02:25]}  Nd5 {[%clk 0:01:56]} 16. Bg3 {[%clk 0:02:25]}  a6 {[%clk 0:01:41]} 17. Nd4 {[%clk 0:02:21]}  h5 {[%clk 0:01:27]} 18. h4 {[%clk 0:02:10]}  Ne5 {[%clk 0:01:26]} 19. O-O-O {[%clk 0:02:08]}  Ng4 {[%clk 0:01:18]} 20. e4 {[%clk 0:01:53]}  Nb6 {[%clk 0:01:14]} 21. f3 {[%clk 0:01:48]}  Ne5 {[%clk 0:01:12]} 22. Nc2 {[%clk 0:01:45]}  Be6 {[%clk 0:01:09]} 23. b3 {[%clk 0:01:44]}  a5 {[%clk 0:01:04]} 24. Ne3 {[%clk 0:01:43]}  a4 {[%clk 0:00:58]} 25. Kc2 {[%clk 0:01:43]}  c6 {[%clk 0:00:52]} 26. Rd4 {[%clk 0:01:41]}  c5 {[%clk 0:00:47]} 27. Rxd8+ {[%clk 0:01:36]}  Rxd8 {[%clk 0:00:48]} 28. Rd1 {[%clk 0:01:36]}  axb3+ {[%clk 0:00:47]} 29. axb3 {[%clk 0:01:35]}  Rxd1 {[%clk 0:00:46]} 30. Bxd1 {[%clk 0:01:36]}  c4 {[%clk 0:00:46]} 31. b4 {[%clk 0:01:35]}  g6 {[%clk 0:00:41]} 32. Be2 {[%clk 0:01:35]}  Kd7 {[%clk 0:00:28]} 33. Kd2 {[%clk 0:01:35]}  Kc6 {[%clk 0:00:25]} 34. Nc2 {[%clk 0:01:35]}  Bf7 {[%clk 0:00:20]} 35. Nd4+ {[%clk 0:01:34]}  Kd7 {[%clk 0:00:20]} 36. Bf2 {[%clk 0:01:30]}  Nc8 {[%clk 0:00:19]} 37. Nc2 {[%clk 0:01:28]}  Nd6 {[%clk 0:00:19]} 38. Bd4 {[%clk 0:01:27]}  b5 {[%clk 0:00:19]} 39. Bf2 {[%clk 0:01:22]}  Ke7 {[%clk 0:00:19]} 40. Bg3 {[%clk 0:01:22]}  Be6 {[%clk 0:00:18]} 41. Nd4 {[%clk 0:01:21]}  Bd7 {[%clk 0:00:19]} 42. Ke3 {[%clk 0:01:20]}  Nc6 {[%clk 0:00:18]} 43. Nxc6+ {[%clk 0:01:20]}  Bxc6 {[%clk 0:00:19]} 44. Kd4 {[%clk 0:01:21]}  f5 {[%clk 0:00:16]} 45. Kc5 {[%clk 0:01:19]}  Nxe4+ {[%clk 0:00:11]} 46. fxe4 {[%clk 0:01:19]}  Bxe4 {[%clk 0:00:12]} 47. Bf3 {[%clk 0:01:19]} 1-0


[Site "https://www.chess.com"]

[Event "Titled Tuesday Blitz January 31 Late 2023"]
[White "Rasulov, Vugar"]
[Black "Tatarinov, Dmitry"]
[WhiteFideId "13402390"]
[BlackFideId "24160067"]
[WhiteElo "2523"]
[BlackElo "2310"]
[Result "1-0"]
[Round "02"]
[TimeControl "180+2"]
[Date "2023.01.31"]
[WhiteClock "0:02:14"]
[BlackClock "0:01:42"]

1. Nf3 {[%clk 0:03:00]}  d5 {[%clk 0:02:59]} 2. c4 {[%clk 0:03:01]}  e6 {[%clk 0:02:58]} 3. g3 {[%clk 0:03:00]}  Nf6 {[%clk 0:02:58]} 4. Bg2 {[%clk 0:03:01]}  Be7 {[%clk 0:02:58]} 5. O-O {[%clk 0:03:01]}  O-O {[%clk 0:02:58]} 6. b3 {[%clk 0:03:02]}  c5 {[%clk 0:02:58]} 7. cxd5 {[%clk 0:03:00]}  exd5 {[%clk 0:02:57]} 8. d4 {[%clk 0:02:59]}  Nc6 {[%clk 0:02:57]} 9. Bb2 {[%clk 0:02:56]}  cxd4 {[%clk 0:02:57]} 10. Nxd4 {[%clk 0:02:52]}  Re8 {[%clk 0:02:48]} 11. Nd2 {[%clk 0:02:45]}  Bc5 {[%clk 0:02:47]} 12. N2f3 {[%clk 0:02:39]}  Bb6 {[%clk 0:02:47]} 13. Rc1 {[%clk 0:02:30]}  Bd7 {[%clk 0:02:47]} 14. Nxc6 {[%clk 0:02:25]}  bxc6 {[%clk 0:02:45]} 15. Ne5 {[%clk 0:02:25]}  Rc8 {[%clk 0:02:37]} 16. Qd3 {[%clk 0:02:23]}  Qe7 {[%clk 0:02:06]} 17. e3 {[%clk 0:02:17]}  Ne4 {[%clk 0:01:42]} 18. Bxe4 {[%clk 0:02:14]} 1-0


[Site "https://www.chess.com"]

[Event "Titled Tuesday Blitz January 31 Late 2023"]
[White "Dardha, Daniel"]
[Black "Chor, Kevin"]
[WhiteFideId "240990"]
[BlackFideId "2090740"]
[WhiteElo "2631"]
[BlackElo "1944"]
[Result "0-1"]
[Round "02"]
[TimeControl "180+2"]
[Date "2023.01.31"]
[WhiteClock "0:00:02"]
[BlackClock "0:00:43"]

1. d4 {[%clk 0:02:45]}  Nf6 {[%clk 0:03:00]} 2. Bg5 {[%clk 0:02:43]}  Ne4 {[%clk 0:02:59]} 3. h4 {[%clk 0:02:38]}  c5 {[%clk 0:02:44]} 4. dxc5 {[%clk 0:02:37]}  Nxg5 {[%clk 0:02:35]} 5. hxg5 {[%clk 0:02:37]}  e6 {[%clk 0:02:36]} 6. g6 {[%clk 0:02:35]}  fxg6 {[%clk 0:02:34]} 7. e3 {[%clk 0:02:33]}  Bxc5 {[%clk 0:02:28]} 8. Bd3 {[%clk 0:02:33]}  Qf6 {[%clk 0:02:28]} 9. Nc3 {[%clk 0:02:28]}  Bb4 {[%clk 0:02:28]} 10. Nf3 {[%clk 0:02:20]}  Bxc3+ {[%clk 0:02:07]} 11. bxc3 {[%clk 0:02:21]}  Qxc3+ {[%clk 0:02:08]} 12. Ke2 {[%clk 0:02:18]}  O-O {[%clk 0:02:02]} 13. Ng5 {[%clk 0:01:39]}  Qf6 {[%clk 0:01:51]} 14. f4 {[%clk 0:01:39]}  h6 {[%clk 0:01:51]} 15. Ne4 {[%clk 0:01:30]}  Qe7 {[%clk 0:01:46]} 16. Qe1 {[%clk 0:01:23]}  d5 {[%clk 0:01:45]} 17. Nd2 {[%clk 0:01:21]}  Nc6 {[%clk 0:01:42]} 18. Qg3 {[%clk 0:01:17]}  e5 {[%clk 0:01:43]} 19. Qxg6 {[%clk 0:01:11]}  e4 {[%clk 0:01:43]} 20. Nxe4 {[%clk 0:01:11]}  Bf5 {[%clk 0:01:36]} 21. Qg3 {[%clk 0:00:45]}  Bxe4 {[%clk 0:01:32]} 22. Rxh6 {[%clk 0:00:45]}  Bxd3+ {[%clk 0:01:24]} 23. Kxd3 {[%clk 0:00:33]}  Qe4+ {[%clk 0:01:16]} 24. Kd2 {[%clk 0:00:09]}  d4 {[%clk 0:01:16]} 25. Rah1 {[%clk 0:00:08]}  Qxe3+ {[%clk 0:01:15]} 26. Qxe3 {[%clk 0:00:06]}  dxe3+ {[%clk 0:01:16]} 27. Kxe3 {[%clk 0:00:07]}  gxh6 {[%clk 0:01:16]} 28. Rxh6 {[%clk 0:00:08]}  Rae8+ {[%clk 0:01:15]} 29. Kf3 {[%clk 0:00:08]}  Ne5+ {[%clk 0:01:11]} 30. Kg3 {[%clk 0:00:08]}  Kg7 {[%clk 0:01:03]} 31. Rh1 {[%clk 0:00:08]}  Ng6 {[%clk 0:01:02]} 32. Rb1 {[%clk 0:00:06]}  Re7 {[%clk 0:01:01]} 33. c4 {[%clk 0:00:04]}  Rxf4 {[%clk 0:01:01]} 34. c5 {[%clk 0:00:05]}  Rc4 {[%clk 0:00:58]} 35. a4 {[%clk 0:00:04]}  Rxa4 {[%clk 0:00:57]} 36. Rc1 {[%clk 0:00:04]}  Rc7 {[%clk 0:00:56]} 37. Kh3 {[%clk 0:00:03]}  Ra5 {[%clk 0:00:55]} 38. Kg4 {[%clk 0:00:03]}  Raxc5 {[%clk 0:00:55]} 39. Rd1 {[%clk 0:00:03]}  b5 {[%clk 0:00:54]} 40. Rd8 {[%clk 0:00:02]}  Rb7 {[%clk 0:00:52]} 41. g3 {[%clk 0:00:01]}  b4 {[%clk 0:00:51]} 42. Rd2 {[%clk 0:00:01]}  b3 {[%clk 0:00:52]} 43. Rb2 {[%clk 0:00:02]}  Rc2 {[%clk 0:00:52]} 44. Rb1 {[%clk 0:00:03]}  b2 {[%clk 0:00:52]} 45. Kh5 {[%clk 0:00:03]}  Rc1 {[%clk 0:00:51]} 46. Rxc1 {[%clk 0:00:02]}  bxc1=Q {[%clk 0:00:51]} 47. g4 {[%clk 0:00:02]}  Qh6# {[%clk 0:00:43]} 0-1


[Site "https://www.chess.com"]

[Event "Titled Tuesday Blitz January 31 Late 2023"]
[White "Zierk, Steven"]
[Black "Fiorito, Joaquin"]
[WhiteFideId "2034255"]
[BlackFideId "180173"]
[WhiteElo "2488"]
[BlackElo "2405"]
[Result "1-0"]
[Round "02"]
[TimeControl "180+2"]
[Date "2023.01.31"]
[WhiteClock "0:00:20"]
[BlackClock "0:00:07"]

1. e4 {[%clk 0:02:59]}  c6 {[%clk 0:03:00]} 2. d4 {[%clk 0:02:59]}  d5 {[%clk 0:03:01]} 3. e5 {[%clk 0:02:58]}  Bf5 {[%clk 0:03:01]} 4. Nf3 {[%clk 0:02:57]}  e6 {[%clk 0:03:01]} 5. Be2 {[%clk 0:02:57]}  c5 {[%clk 0:03:01]} 6. O-O {[%clk 0:02:56]}  Nc6 {[%clk 0:02:56]} 7. Be3 {[%clk 0:02:51]}  cxd4 {[%clk 0:02:50]} 8. Nxd4 {[%clk 0:02:52]}  Bg6 {[%clk 0:02:50]} 9. c4 {[%clk 0:02:48]}  Nge7 {[%clk 0:02:47]} 10. Nc3 {[%clk 0:02:48]}  dxc4 {[%clk 0:02:41]} 11. Ndb5 {[%clk 0:02:38]}  Nf5 {[%clk 0:02:36]} 12. Bf4 {[%clk 0:02:29]}  a6 {[%clk 0:02:28]} 13. Nd6+ {[%clk 0:02:15]}  Bxd6 {[%clk 0:02:23]} 14. exd6 {[%clk 0:02:16]}  e5 {[%clk 0:02:23]} 15. Bg3 {[%clk 0:02:08]}  Nxd6 {[%clk 0:02:19]} 16. Qd5 {[%clk 0:02:05]}  O-O {[%clk 0:02:17]} 17. Rad1 {[%clk 0:02:03]}  Nf5 {[%clk 0:02:16]} 18. Qxc4 {[%clk 0:02:04]}  Qe7 {[%clk 0:02:14]} 19. Nd5 {[%clk 0:02:01]}  Qe6 {[%clk 0:02:11]} 20. Bg4 {[%clk 0:01:53]}  Rac8 {[%clk 0:02:05]} 21. Qa4 {[%clk 0:01:40]}  Ncd4 {[%clk 0:02:01]} 22. Nc3 {[%clk 0:01:33]}  b5 {[%clk 0:01:57]} 23. Qa5 {[%clk 0:01:31]}  f6 {[%clk 0:01:53]} 24. f4 {[%clk 0:01:21]}  Qc6 {[%clk 0:01:33]} 25. Bf2 {[%clk 0:01:15]}  Rcd8 {[%clk 0:01:27]} 26. fxe5 {[%clk 0:01:11]}  fxe5 {[%clk 0:01:27]} 27. Rfe1 {[%clk 0:01:11]}  Rfe8 {[%clk 0:01:22]} 28. Rxe5 {[%clk 0:00:56]}  Rxe5 {[%clk 0:00:46]} 29. Qxd8+ {[%clk 0:00:55]}  Re8 {[%clk 0:00:47]} 30. Qd5+ {[%clk 0:00:48]}  Qxd5 {[%clk 0:00:46]} 31. Nxd5 {[%clk 0:00:49]}  Nc6 {[%clk 0:00:24]} 32. Nc7 {[%clk 0:00:46]}  Rf8 {[%clk 0:00:19]} 33. Bf3 {[%clk 0:00:35]}  Ne5 {[%clk 0:00:18]} 34. Bd5+ {[%clk 0:00:35]}  Kh8 {[%clk 0:00:19]} 35. Nxa6 {[%clk 0:00:34]}  Ng4 {[%clk 0:00:18]} 36. Bc5 {[%clk 0:00:32]}  Rd8 {[%clk 0:00:18]} 37. Bf3 {[%clk 0:00:29]}  Rxd1+ {[%clk 0:00:18]} 38. Bxd1 {[%clk 0:00:30]}  Nge3 {[%clk 0:00:19]} 39. Bf3 {[%clk 0:00:29]}  Nc4 {[%clk 0:00:19]} 40. b3 {[%clk 0:00:29]}  Nd2 {[%clk 0:00:19]} 41. Bc6 {[%clk 0:00:30]}  Bf7 {[%clk 0:00:12]} 42. Nc7 {[%clk 0:00:25]}  Nxb3 {[%clk 0:00:10]} 43. axb3 {[%clk 0:00:25]}  Bxb3 {[%clk 0:00:11]} 44. Nxb5 {[%clk 0:00:23]}  Ba4 {[%clk 0:00:11]} 45. Be4 {[%clk 0:00:21]}  Bxb5 {[%clk 0:00:08]} 46. Bxf5 {[%clk 0:00:21]}  Kg8 {[%clk 0:00:08]} 47. Bd4 {[%clk 0:00:20]}  Kf7 {[%clk 0:00:08]} 48. Bxh7 {[%clk 0:00:20]}  g6 {[%clk 0:00:09]} 49. h4 {[%clk 0:00:19]}  Bd3 {[%clk 0:00:09]} 50. Kf2 {[%clk 0:00:19]}  Bc4 {[%clk 0:00:07]} 51. Ke3 {[%clk 0:00:19]}  Bd5 {[%clk 0:00:07]} 52. g3 {[%clk 0:00:19]}  Be6 {[%clk 0:00:06]} 53. Kf4 {[%clk 0:00:20]}  Bd5 {[%clk 0:00:06]} 54. Kg5 {[%clk 0:00:20]}  Be4 {[%clk 0:00:07]} 55. h5 {[%clk 0:00:20]} 1-0


[Site "https://www.chess.com"]

[Event "Titled Tuesday Blitz January 31 Late 2023"]
[White "Blomqvist, Erik"]
[Black "Mosadeghpour, Masoud"]
[WhiteFideId "1709437"]
[BlackFideId "12519278"]
[WhiteElo "2523"]
[BlackElo "2472"]
[Result "0-1"]
[Round "02"]
[TimeControl "180+2"]
[Date "2023.01.31"]
[WhiteClock "0:00:01"]
[BlackClock "0:00:43"]

1. e4 {[%clk 0:03:00]}  c5 {[%clk 0:02:53]} 2. Nf3 {[%clk 0:02:54]}  d6 {[%clk 0:02:48]} 3. d4 {[%clk 0:02:50]}  cxd4 {[%clk 0:02:48]} 4. Nxd4 {[%clk 0:02:49]}  Nf6 {[%clk 0:02:48]} 5. Nc3 {[%clk 0:02:49]}  Nc6 {[%clk 0:02:49]} 6. Bc4 {[%clk 0:02:44]}  e5 {[%clk 0:02:48]} 7. Nf3 {[%clk 0:02:26]}  Be7 {[%clk 0:02:42]} 8. O-O {[%clk 0:02:25]}  O-O {[%clk 0:02:42]} 9. Bg5 {[%clk 0:02:21]}  Be6 {[%clk 0:02:43]} 10. Bb3 {[%clk 0:02:18]}  Rc8 {[%clk 0:02:42]} 11. Bxf6 {[%clk 0:02:07]}  Bxf6 {[%clk 0:02:41]} 12. Qe2 {[%clk 0:02:08]}  Nd4 {[%clk 0:02:36]} 13. Nxd4 {[%clk 0:02:08]}  exd4 {[%clk 0:02:37]} 14. Nd5 {[%clk 0:02:09]}  Bxd5 {[%clk 0:02:36]} 15. Bxd5 {[%clk 0:02:05]}  Rc5 {[%clk 0:02:36]} 16. Rad1 {[%clk 0:01:56]}  Qb6 {[%clk 0:02:35]} 17. Bb3 {[%clk 0:01:55]}  Re8 {[%clk 0:02:31]} 18. Qf3 {[%clk 0:01:44]}  Qc7 {[%clk 0:02:24]} 19. g3 {[%clk 0:01:35]}  b5 {[%clk 0:02:23]} 20. a4 {[%clk 0:01:33]}  b4 {[%clk 0:02:18]} 21. Qd3 {[%clk 0:01:21]}  a5 {[%clk 0:02:16]} 22. f4 {[%clk 0:01:11]}  Qd7 {[%clk 0:02:05]} 23. Rde1 {[%clk 0:01:03]}  Qh3 {[%clk 0:02:03]} 24. Re2 {[%clk 0:01:02]}  h5 {[%clk 0:01:58]} 25. Qf3 {[%clk 0:00:26]}  Qg4 {[%clk 0:01:54]} 26. Kg2 {[%clk 0:00:26]}  Qxf3+ {[%clk 0:01:50]} 27. Kxf3 {[%clk 0:00:26]}  g6 {[%clk 0:01:50]} 28. Rd1 {[%clk 0:00:21]}  Kg7 {[%clk 0:01:50]} 29. Rd3 {[%clk 0:00:21]}  Re7 {[%clk 0:01:46]} 30. h4 {[%clk 0:00:20]}  Re8 {[%clk 0:01:45]} 31. Kf2 {[%clk 0:00:20]}  Rc7 {[%clk 0:01:42]} 32. Kf3 {[%clk 0:00:20]}  Rce7 {[%clk 0:01:41]} 33. Bd5 {[%clk 0:00:20]}  Kf8 {[%clk 0:01:41]} 34. Red2 {[%clk 0:00:19]}  Rc7 {[%clk 0:01:40]} 35. Re2 {[%clk 0:00:17]}  Bg7 {[%clk 0:01:39]} 36. Bb3 {[%clk 0:00:17]}  Rce7 {[%clk 0:01:38]} 37. Bd5 {[%clk 0:00:11]}  Rc8 {[%clk 0:01:35]} 38. Rdd2 {[%clk 0:00:10]}  Rc5 {[%clk 0:01:33]} 39. Bb3 {[%clk 0:00:09]}  Ke8 {[%clk 0:01:30]} 40. Rd3 {[%clk 0:00:08]}  Kd8 {[%clk 0:01:31]} 41. Red2 {[%clk 0:00:09]}  Kc7 {[%clk 0:01:31]} 42. Rd1 {[%clk 0:00:09]}  Kb6 {[%clk 0:01:29]} 43. R1d2 {[%clk 0:00:09]}  Rc8 {[%clk 0:01:29]} 44. Rxd4 {[%clk 0:00:08]}  Bxd4 {[%clk 0:01:27]} 45. Rxd4 {[%clk 0:00:09]}  Rd7 {[%clk 0:01:16]} 46. Rd5 {[%clk 0:00:08]}  Rc5 {[%clk 0:01:16]} 47. Rd4 {[%clk 0:00:09]}  Kc7 {[%clk 0:01:15]} 48. Rd3 {[%clk 0:00:08]}  Kd8 {[%clk 0:01:14]} 49. Rd4 {[%clk 0:00:09]}  Ke7 {[%clk 0:01:14]} 50. Rd3 {[%clk 0:00:09]}  Rdc7 {[%clk 0:01:15]} 51. Rd2 {[%clk 0:00:09]}  f5 {[%clk 0:01:14]} 52. exf5 {[%clk 0:00:07]}  gxf5 {[%clk 0:01:09]} 53. Re2+ {[%clk 0:00:08]}  Kd7 {[%clk 0:01:06]} 54. Rd2 {[%clk 0:00:04]}  Rc8 {[%clk 0:01:04]} 55. Rd3 {[%clk 0:00:03]}  Re8 {[%clk 0:01:03]} 56. Rd4 {[%clk 0:00:03]}  Re1 {[%clk 0:01:03]} 57. Bc4 {[%clk 0:00:03]}  Re4 {[%clk 0:00:45]} 58. Bb5+ {[%clk 0:00:01]}  Rxb5 {[%clk 0:00:43]} 0-1


[Site "https://www.chess.com"]